fUST/lending_fUST_20240809
["ID","MTS","AMOUNT","RATE_DAILY","PERIOD"]
[334547098,1723187444257,-524.784304,0.0002543,7]
[334547099,1723187444276,-551.48876,0.0002543,7]
[334547100,1723187444285,-551.48876,0.0002543,7]
[334547101,1723187444295,-151.0,0.0002543,7]
[334547102,1723187444305,-2620.62004,0.0002543,7]
[334547103,1723187444315,-2620.62004,0.0002543,7]
[334547104,1723187444325,-1997.886861,0.0002543,7]
[334547105,1723187444334,-1997.886861,0.0002543,7]
[334547106,1723187444345,-183.203398,0.0002543,2]
[334547107,1723187444355,-183.203398,0.0002543,2]
[334547108,1723187444364,-308.87202,0.0002543,7]
[334547109,1723187444374,-308.87202,0.0002543,7]
[334547110,1723187444384,-464.804545,0.0002543,7]
[334547111,1723187444393,-464.804545,0.0002543,7]
[334547112,1723187444402,-1652.871826,0.0002543,7]
[334547113,1723187444412,-1652.871826,0.0002543,7]
[334547114,1723187444422,-594.030162,0.0002543,7]
[334547115,1723187444433,-594.030162,0.0002543,7]
[334547116,1723187444443,-151.0,0.0002543,7]
[334547117,1723187444452,-3000.0,0.0002544,2]
[334547118,1723187444462,-496.624555,0.0002544,7]
[334547119,1723187444472,-571.573302,0.0002544,7]
[334547120,1723187444481,-571.573302,0.0002544,7]
[334547121,1723187444490,-162.491998,0.0002544,7]
[334547122,1723187444500,-162.491998,0.0002544,7]
[334547123,1723187444509,-3000.0,0.0002545,2]
[334547124,1723187444520,-3000.0,0.0002546,2]
[334547125,1723187444530,-151.0,0.0002546,7]
[334547126,1723187444539,-151.0,0.0002546,7]
[334547127,1723187444549,-3000.0,0.0002547,2]
[334547128,1723187444558,-3000.0,0.0002548,2]
[334547129,1723187444567,-882.14952086,0.00025486,2]
[334547130,1723187444577,-3000.0,0.0002549,2]
[334547131,1723187444586,-160.67955674,0.00025499,2]
[334547132,1723187444595,-150.112233,0.000255,5]
[334547133,1723187444605,-3000.0,0.000255,2]
[334547134,1723187444615,-3000.0,0.0002551,2]
[334547135,1723187444624,-3000.0,0.0002552,2]
[334547136,1723187444634,-472.16409374,0.00025525,2]
[334547137,1723187444644,-3000.0,0.0002553,2]
[334547138,1723187444653,-3000.0,0.0002554,2]
[334547139,1723187444663,-3000.0,0.0002555,2]
[334547140,1723187444673,-3000.0,0.0002556,2]
[334547141,1723187444682,-3000.0,0.0002557,2]
[334547142,1723187444692,-3000.0,0.0002558,2]
[334547143,1723187444701,-3000.0,0.0002559,2]
[334547144,1723187444710,-3000.0,0.000256,2]
[334547145,1723187444720,-3000.0,0.0002561,2]
[334547146,1723187444730,-3000.0,0.0002562,2]
[334547147,1723187444742,-3000.0,0.0002563,2]
[334547148,1723187444754,-151.0,0.0002564,7]
[334547149,1723187444767,-151.0,0.0002564,7]
[334547150,1723187444777,-151.0,0.0002564,7]
[334547151,1723187444787,-3000.0,0.0002564,2]
[334547152,1723187444796,-151.0,0.0002565,7]
[334547153,1723187444805,-587.962494,0.0002565,7]
[334547154,1723187444815,-587.962494,0.0002565,7]
[334547155,1723187444824,-151.0,0.0002565,7]
[334547156,1723187444833,-233.385139,0.0002565,7]
[334547157,1723187444843,-233.385139,0.0002565,7]
[334547158,1723187444853,-3000.0,0.0002565,2]
[334547159,1723187444863,-151.0,0.0002565,7]
[334547160,1723187444873,-151.0,0.0002566,7]
[334547161,1723187444882,-259.718733,0.0002566,7]
[334547162,1723187444892,-3000.0,0.0002566,2]
[334547163,1723187444901,-3000.0,0.0002567,2]
[334547164,1723187444911,-3000.0,0.0002568,2]
[334547165,1723187444922,-3000.0,0.0002569,2]
[334547166,1723187444935,-3000.0,0.000257,2]
[334547167,1723187444944,-519.407902,0.000257,7]
[334547168,1723187444954,-519.407902,0.000257,7]
[334547169,1723187444964,-1170.804986,0.000257,7]
[334547170,1723187444973,-1170.804986,0.000257,7]
[334547171,1723187444983,-524.784304,0.000257,7]
[334547172,1723187444993,-524.784304,0.000257,7]
[334547173,1723187445002,-308.87202,0.000257,7]
[334547174,1723187445012,-308.87202,0.000257,7]
[334547175,1723187445023,-464.804545,0.000257,7]
[334547176,1723187445033,-464.804545,0.000257,7]
[334547177,1723187445043,-1652.871826,0.000257,7]
[334547178,1723187445052,-1652.871826,0.000257,7]
[334547179,1723187445062,-594.030162,0.000257,7]
[334547180,1723187445072,-594.030162,0.000257,7]
[334547181,1723187445082,-3000.0,0.0002571,2]
[334547182,1723187445092,-551.48876,0.0002571,7]
[334547183,1723187445102,-551.48876,0.0002571,7]
[334547184,1723187445112,-155.296969,0.0002571,7]
[334547185,1723187445122,-2620.62004,0.0002571,7]
[334547186,1723187445134,-2620.62004,0.0002571,7]
[334547187,1723187445144,-1997.886861,0.0002571,7]
[334547188,1723187445153,-1997.886861,0.0002571,7]
[334547189,1723187445163,-183.203398,0.0002571,2]
[334547190,1723187445173,-183.203398,0.0002571,2]
[334547191,1723187445183,-3000.0,0.0002572,2]
[334547192,1723187445193,-496.624555,0.0002572,7]
[334547193,1723187445203,-571.573302,0.0002572,7]
[334547194,1723187445213,-571.573302,0.0002572,7]
[334547195,1723187445224,-162.491998,0.0002572,7]
[334547196,1723187445233,-162.491998,0.0002572,7]
[334547197,1723187445242,-3000.0,0.0002573,2]
[334547198,1723187445252,-3000.0,0.0002574,2]
[334547199,1723187445261,-241.881658,0.0002574,7]
[334547200,1723187445271,-240.133107,0.0002574,7]
[334547201,1723187445281,-3000.0,0.0002575,2]
[334547202,1723187445290,-3000.0,0.0002576,2]
[334547203,1723187445300,-3000.0,0.0002577,2]
[334547204,1723187445309,-3000.0,0.0002578,2]
[334547205,1723187445319,-155.0,0.0002578,14]
[334547206,1723187445337,-3000.0,0.0002579,2]
[334547207,1723187445350,-3000.0,0.000258,2]
[334547208,1723187445360,-3000.0,0.0002581,2]
[334547209,1723187445371,-3000.0,0.0002582,2]
[334547210,1723187445381,-160.0,0.00025822,6]
[334547211,1723187445391,-3000.0,0.0002583,2]
[334547212,1723187445401,-3000.0,0.0002584,2]
[334547213,1723187445411,-3000.0,0.0002585,2]
[334547214,1723187445421,-3000.0,0.0002586,2]
[334547215,1723187445433,-4160.550204,0.0002587,2]
[334547216,1723187445444,-151.0,0.0002588,7]
[334547217,1723187445455,-151.0,0.0002588,7]
[334547218,1723187445466,-151.0,0.0002588,7]
[334547219,1723187445477,-453.0,0.0002589,2]
[334547220,1723187445487,-160.0,0.0002589,2]
[334547221,1723187445496,-151.0,0.0002594,7]
[334547222,1723187445506,-587.962494,0.0002594,7]
[334547223,1723187445517,-587.962494,0.0002594,7]
[334547224,1723187445529,-151.0,0.0002594,7]
[334547225,1723187445540,-233.385139,0.0002594,7]
[334547226,1723187445551,-233.385139,0.0002594,7]
[334547227,1723187445561,-151.0,0.00025946,3]
[334547228,1723187445571,-151.0,0.00025946,3]
[334547229,1723187445580,-151.0,0.0002597,7]
[334547230,1723187445590,-151.0,0.00026,7]
[334547231,1723187445600,-151.0,0.00026027,7]
[334547232,1723187445610,-151.0,0.00026027,7]
[334547233,1723187445620,-587.962494,0.00026027,7]
[334547234,1723187445629,-587.962494,0.00026027,7]
[334547235,1723187445640,-151.0,0.00026027,7]
[334547236,1723187445650,-233.385139,0.00026027,7]
[334547237,1723187445660,-233.385139,0.00026027,7]
[334547238,1723187445670,-151.0,0.00026027,7]
[334547239,1723187445680,-151.0,0.00026027,7]
[334547240,1723187445690,-151.0,0.00026027,7]
[334547241,1723187445700,-151.0,0.00026027,7]
[334547242,1723187445710,-496.624555,0.00026027,7]
[334547243,1723187445720,-496.624555,0.00026027,7]
[334547244,1723187445729,-496.624555,0.00026027,7]
[334547245,1723187445739,-496.624555,0.00026027,7]
[334547246,1723187445748,-571.573302,0.00026027,7]
[334547247,1723187445759,-571.573302,0.00026027,7]
[334547248,1723187445769,-571.573302,0.00026027,7]
[334547249,1723187445779,-571.573302,0.00026027,7]
[334547250,1723187445788,-162.491998,0.00026027,7]
[334547251,1723187445798,-162.491998,0.00026027,7]
[334547252,1723187445807,-162.491998,0.00026027,7]
[334547253,1723187445817,-162.491998,0.00026027,7]
[334547254,1723187445827,-5764.29,0.00026027,5]
[334547255,1723187445836,-5764.29,0.00026027,5]
[334547256,1723187445847,-5764.29,0.00026027,5]
[334547257,1723187445856,-5764.29,0.00026027,5]
[334547258,1723187445866,-5764.29,0.00026027,5]
[334547259,1723187445876,-5764.29,0.00026027,5]
[334547260,1723187445885,-5764.29,0.00026027,5]
[334547261,1723187445895,-519.407902,0.00026027,7]
[334547262,1723187445905,-5764.29,0.00026027,5]
[334547263,1723187445914,-519.407902,0.00026027,7]
[334547264,1723187445924,-5764.29,0.00026027,5]
[334547265,1723187445935,-5764.29,0.00026027,5]
[334547266,1723187445947,-5764.29,0.00026027,5]
[334547267,1723187445958,-5764.29,0.00026027,5]
[334547268,1723187445969,-5764.29,0.00026027,5]
[334547269,1723187445979,-5764.29,0.00026027,5]
[334547270,1723187445989,-5764.29,0.00026027,5]
[334547271,1723187446000,-5764.29,0.00026027,5]
[334547272,1723187446010,-5764.29,0.00026027,5]
[334547273,1723187446021,-519.407902,0.00026027,7]
[334547274,1723187446031,-5764.29,0.00026027,5]
[334547275,1723187446041,-519.407902,0.00026027,7]
[334547276,1723187446052,-5764.29,0.00026027,5]
[334547277,1723187446062,-5764.29,0.00026027,5]
[334547278,1723187446073,-5764.29,0.00026027,5]
[334547279,1723187446082,-5764.29,0.00026027,5]
[334547280,1723187446092,-5764.29,0.00026027,5]
[334547281,1723187446102,-5764.49696689,0.00026027,5]
[334547282,1723187446111,-1170.804986,0.00026027,7]
[334547283,1723187446122,-1170.804986,0.00026027,7]
[334547284,1723187446132,-1170.804986,0.00026027,7]
[334547285,1723187446142,-1170.804986,0.00026027,7]
[334547286,1723187446152,-524.784304,0.00026027,7]
[334547287,1723187446162,-524.784304,0.00026027,7]
[334547288,1723187446175,-524.784304,0.00026027,7]
[334547289,1723187446186,-524.784304,0.00026027,7]
[334547290,1723187446197,-551.48876,0.00026027,7]
[334547291,1723187446208,-551.48876,0.00026027,7]
[334547292,1723187446218,-551.48876,0.00026027,7]
[334547293,1723187446229,-551.48876,0.00026027,7]
[334547294,1723187446240,-2620.62004,0.00026027,7]
[334547295,1723187446251,-2620.62004,0.00026027,7]
[334547296,1723187446263,-2620.62004,0.00026027,7]
[334547297,1723187446277,-2620.62004,0.00026027,7]
[334547298,1723187446287,-1997.886861,0.00026027,7]
[334547299,1723187446297,-1997.886861,0.00026027,7]
[334547301,1723187446307,-1997.886861,0.00026027,7]
[334547302,1723187446317,-1997.886861,0.00026027,7]
[334547303,1723187446327,-183.203398,0.00026027,2]
[334547304,1723187446337,-183.203398,0.00026027,2]
[334547305,1723187446346,-183.203398,0.00026027,2]
[334547306,1723187446356,-183.203398,0.00026027,2]
[334547307,1723187446366,-308.87202,0.00026027,7]
[334547308,1723187446376,-308.87202,0.00026027,7]
[334547309,1723187446387,-308.87202,0.00026027,7]
[334547310,1723187446397,-308.87202,0.00026027,7]
[334547317,1723187446479,-464.804545,0.00026027,7]
[334547319,1723187446489,-464.804545,0.00026027,7]
[334547321,1723187446498,-464.804545,0.00026027,7]
[334547323,1723187446508,-464.804545,0.00026027,7]
[334547325,1723187446521,-1000.0,0.00026027,7]
[334547326,1723187446530,-1000.0,0.00026027,7]
[334547328,1723187446539,-1000.0,0.00026027,7]
[334547330,1723187446549,-455.542435,0.00026027,7]
[334547332,1723187446559,-1652.871826,0.00026027,7]
[334547334,1723187446569,-1652.871826,0.00026027,7]
[334547335,1723187446578,-1652.871826,0.00026027,7]
[334547337,1723187446587,-1652.871826,0.00026027,7]
[334547338,1723187446597,-594.030162,0.00026027,7]
[334547339,1723187446608,-594.030162,0.00026027,7]
[334547340,1723187446617,-594.030162,0.00026027,7]
[334547341,1723187446627,-594.030162,0.00026027,7]
[334547342,1723187446637,-500.0,0.00026027,2]
[334547343,1723187446647,-500.0,0.00026027,2]
[334547344,1723187446658,-500.0,0.00026027,2]
[334547345,1723187446668,-500.0,0.00026027,2]
[334547346,1723187446678,-500.0,0.00026027,2]
[334547347,1723187446688,-500.0,0.00026027,2]
[334547348,1723187446699,-500.0,0.00026027,2]
[334547349,1723187446709,-500.0,0.00026027,2]
[334547350,1723187446718,-570.87343678,0.00026027,2]
[334547351,1723187446728,-500.0,0.00026027,2]
[334547352,1723187446738,-500.0,0.00026027,2]
[334547353,1723187446749,-500.0,0.00026027,2]
[334547354,1723187446759,-500.0,0.00026027,2]
[334547355,1723187446775,-500.0,0.00026027,2]
[334547356,1723187446787,-500.0,0.00026027,2]
[334547357,1723187446797,-200.0,0.00026027,2]
[334547358,1723187446806,-620.00254855,0.00026255,2]
[334547360,1723187446816,-160.0,0.00026258,7]
[334547362,1723187446826,-402.66527594,0.0002632,2]
[334547364,1723187446836,-2837.41643718,0.00026472,2]
[334547366,1723187446847,-500.0,0.00026481,2]
[334547368,1723187446857,-7458.94652043,0.0002649,2]
[334547370,1723187446867,-321.13,0.000265,7]
[334547371,1723187446876,-9632.85,0.000265,14]
[334547374,1723187446888,-151.0,0.00026549,7]
[334547376,1723187446898,-151.0,0.00026549,7]
[334547377,1723187446907,-151.0,0.00026549,7]
[334547378,1723187446917,-157.895547,0.00026549,2]
[334547379,1723187446927,-160.575813,0.00026549,2]
[334547380,1723187446937,-220.780168,0.00026549,2]
[334547381,1723187446947,-718.9,0.000266,14]
[334547382,1723187446956,-151.0,0.00026609,4]
[334547383,1723187446966,-151.0,0.00026609,4]
[334547384,1723187446976,-160.0,0.00026694,8]
[334547385,1723187446985,-154.94074895,0.00026719,2]
[334547386,1723187446995,-819.50865955,0.000269,21]
[334547387,1723187447004,-2000.0,0.000269,2]
[334547388,1723187447014,-301.013907,0.000269,12]
[334547389,1723187447026,-1308.0,0.00026989,17]
[334547390,1723187447037,-4992.78014801,0.00027,2]
[334547391,1723187447046,-183.09226722,0.00027,2]
[334547392,1723187447056,-60676.389,0.00027,10]
[334547393,1723187447065,-1000.0,0.00027,27]
[334547394,1723187447075,-2965.04,0.00027,2]
[334547395,1723187447084,-7732.0,0.00027,5]
[334547396,1723187447094,-11529.9338699,0.00027,4]
[334547397,1723187447104,-407.55933945,0.00027,7]
[334547398,1723187447113,-151.0,0.00027,7]
[334547399,1723187447122,-587.962494,0.00027,7]
[334547400,1723187447132,-587.962494,0.00027,7]
[334547401,1723187447142,-151.0,0.00027,7]
[334547402,1723187447151,-233.385139,0.00027,7]
[334547403,1723187447160,-233.385139,0.00027,7]
[334547404,1723187447170,-151.0,0.00027,7]
[334547405,1723187447180,-496.624555,0.00027,7]
[334547406,1723187447189,-496.624555,0.00027,7]
[334547407,1723187447199,-571.573302,0.00027,7]
[334547408,1723187447208,-571.573302,0.00027,7]
[334547409,1723187447217,-162.491998,0.00027,7]
[334547410,1723187447226,-162.491998,0.00027,7]
[334547411,1723187447236,-519.407902,0.00027,7]
[334547412,1723187447246,-519.407902,0.00027,7]
[334547413,1723187447255,-154.77557542,0.00027,2]
[334547414,1723187447264,-1626.92608275,0.00027,2]
[334547415,1723187447275,-10493.07332189,0.00027,2]
[334547416,1723187447284,-1170.804986,0.00027,7]
[334547417,1723187447293,-1170.804986,0.00027,7]
[334547418,1723187447304,-524.784304,0.00027,7]
[334547419,1723187447313,-524.784304,0.00027,7]
[334547420,1723187447322,-551.48876,0.00027,7]
[334547421,1723187447332,-551.48876,0.00027,7]
[334547422,1723187447342,-2620.62004,0.00027,7]
[334547423,1723187447351,-4184.36415148,0.00027,2]
[334547424,1723187447361,-2620.62004,0.00027,7]
[334547425,1723187447370,-1997.886861,0.00027,7]
[334547426,1723187447379,-1997.886861,0.00027,7]
[334547427,1723187447389,-183.203398,0.00027,2]
[334547428,1723187447398,-183.203398,0.00027,2]
[334547429,1723187447408,-308.87202,0.00027,7]
[334547430,1723187447417,-308.87202,0.00027,7]
[334547431,1723187447428,-464.804545,0.00027,7]
[334547432,1723187447442,-464.804545,0.00027,7]
[334547433,1723187447451,-1652.871826,0.00027,7]
[334547434,1723187447461,-1652.871826,0.00027,7]
[334547435,1723187447471,-594.030162,0.00027,7]
[334547436,1723187447482,-594.030162,0.00027,7]
[334547437,1723187447491,-6169.84534625,0.00027006,30]
[334547438,1723187447500,-160.0,0.00027131,9]
[334547439,1723187447509,-160.0,0.00027131,5]
[334547440,1723187447520,-1613.0,0.00027164,2]
[334547441,1723187447529,-453.0,0.00027185,2]
[334547442,1723187447539,-161.0,0.00027185,2]
[334547443,1723187447548,-151.0,0.00027272,7]
[334547444,1723187447558,-151.0,0.00027272,7]
[334547445,1723187447567,-151.0,0.00027272,7]
[334547446,1723187447577,-151.0,0.00027272,4]
[334547447,1723187447586,-151.0,0.00027272,4]
[334547448,1723187447596,-20018.537942,0.000273,3]
[334547449,1723187447607,-200.0,0.00027373,2]
[334547450,1723187447618,-305.70460199,0.0002739,2]
[334547451,1723187447629,-160.0,0.00027396,10]
[334547452,1723187447639,-503.37446145,0.00027397,7]
[334547453,1723187447649,-610.36450833,0.00027397,7]
[334547454,1723187447660,-502.56730305,0.00027397,7]
[334547455,1723187447671,-506.73271009,0.00027397,7]
[334547456,1723187447680,-504.06408991,0.00027397,7]
[334547457,1723187447689,-503.56290974,0.00027397,7]
[334547458,1723187447698,-500.0,0.00027397,7]
[334547459,1723187447707,-500.15505334,0.00027397,7]
[334547460,1723187447717,-503.56423679,0.00027397,7]
[334547461,1723187447726,-501.12309305,0.00027397,7]
[334547462,1723187447737,-500.0,0.00027397,7]
[334547463,1723187447747,-503.42778909,0.00027397,7]
[334547464,1723187447758,-504.87536699,0.00027397,7]
[334547465,1723187447769,-505.2933713,0.00027397,7]
[334547466,1723187447778,-500.0,0.00027397,7]
[334547467,1723187447787,-500.0,0.00027397,7]
[334547468,1723187447797,-404.23839521,0.00027397,7]
[334547469,1723187447807,-339.49360579,0.00027397,7]
[334547470,1723187447816,-506.74868527,0.00027397,7]
[334547471,1723187447825,-504.05103996,0.00027397,7]
[334547472,1723187447837,-500.0,0.00027397,7]
[334547473,1723187447846,-500.0,0.00027397,7]
[334547474,1723187447856,-505.5,0.00027397,7]
[334547475,1723187447866,-504.81477913,0.00027397,7]
[334547476,1723187447875,-503.73910756,0.00027397,7]
[334547477,1723187447884,-502.23171803,0.00027397,7]
[334547478,1723187447894,-501.45752607,0.00027397,7]
[334547479,1723187447903,-503.51737208,0.00027397,7]
[334547480,1723187447912,-242.60364154,0.00027397,7]
[334547481,1723187447922,-500.0,0.00027397,7]
[334547482,1723187447931,-500.0,0.00027397,7]
[334547483,1723187447941,-500.0,0.00027397,7]
[334547484,1723187447951,-223.94380222,0.00027397,7]
[334547485,1723187447960,-505.1044146,0.00027397,7]
[334547486,1723187447971,-500.0,0.00027397,7]
[334547487,1723187447980,-500.0,0.00027397,7]
[334547488,1723187447990,-500.0,0.00027397,7]
[334547489,1723187448000,-500.0,0.00027397,7]
[334547490,1723187448010,-500.0,0.00027397,7]
[334547491,1723187448021,-500.0,0.00027397,7]
[334547492,1723187448030,-502.67851192,0.00027397,7]
[334547493,1723187448041,-502.87492223,0.00027397,7]
[334547494,1723187448051,-500.0,0.00027397,7]
[334547495,1723187448062,-500.0,0.00027397,7]
[334547496,1723187448073,-500.0,0.00027397,7]
[334547497,1723187448083,-539.68,0.00027397,7]
[334547498,1723187448093,-500.0,0.00027397,7]
[334547499,1723187448103,-503.72203065,0.00027397,7]
[334547500,1723187448112,-503.44400488,0.00027397,7]
[334547501,1723187448122,-500.0,0.00027397,7]
[334547502,1723187448132,-500.0,0.00027397,7]
[334547503,1723187448142,-500.0,0.00027397,7]
[334547504,1723187448152,-500.0,0.00027397,7]
[334547505,1723187448162,-154.76012181,0.00027397,7]
[334547506,1723187448172,-500.0,0.00027397,7]
[334547507,1723187448183,-506.51715667,0.00027397,7]
[334547508,1723187448192,-500.0,0.00027397,7]
[334547509,1723187448202,-500.0,0.00027397,7]
[334547510,1723187448212,-500.0,0.00027397,7]
[334547511,1723187448222,-500.0,0.00027397,7]
[334547512,1723187448232,-322.48660577,0.00027397,7]
[334547513,1723187448242,-500.0,0.00027397,7]
[334547514,1723187448251,-502.9727646,0.00027397,7]
[334547515,1723187448262,-1190.14768425,0.00027397,2]
[334547516,1723187448272,-500.0,0.00027397,7]
[334547517,1723187448282,-503.37591549,0.00027397,7]
[334547518,1723187448292,-517.45880423,0.00027397,7]
[334547519,1723187448302,-500.0,0.00027397,7]
[334547520,1723187448312,-500.0,0.00027397,7]
[334547521,1723187448322,-500.0,0.00027397,7]
[334547522,1723187448332,-506.66144435,0.00027397,7]
[334547523,1723187448341,-625.0,0.00027397,7]
[334547524,1723187448351,-625.0,0.00027397,7]
[334547525,1723187448360,-625.0,0.00027397,7]
[334547526,1723187448371,-625.0,0.00027397,7]
[334547527,1723187448380,-625.0,0.00027397,7]
[334547528,1723187448390,-625.0,0.00027397,7]
[334547529,1723187448400,-625.0,0.00027397,7]
[334547530,1723187448409,-625.0,0.00027397,7]
[334547531,1723187448420,-500.0,0.00027397,7]
[334547532,1723187448430,-625.0,0.00027397,7]
[334547533,1723187448441,-625.0,0.00027397,7]
[334547534,1723187448451,-625.0,0.00027397,7]
[334547535,1723187448460,-625.0,0.00027397,7]
[334547536,1723187448474,-625.0,0.00027397,7]
[334547537,1723187448486,-625.0,0.00027397,7]
[334547538,1723187448497,-625.0,0.00027397,7]
[334547539,1723187448507,-625.0,0.00027397,7]
[334547540,1723187448523,-625.0,0.00027397,7]
[334547541,1723187448533,-625.0,0.00027397,7]
[334547542,1723187448542,-625.0,0.00027397,7]
[334547543,1723187448552,-625.0,0.00027397,7]
[334547544,1723187448562,-625.0,0.00027397,7]
[334547545,1723187448573,-625.0,0.00027397,7]
[334547546,1723187448583,-625.0,0.00027397,7]
[334547547,1723187448593,-625.17287889,0.00027397,7]
[334547548,1723187448603,-502.33390638,0.00027397,7]
[334547549,1723187448613,-502.23286371,0.00027397,7]
[334547550,1723187448623,-500.0,0.00027397,7]
[334547551,1723187448633,-598.42710322,0.00027397,7]
[334547552,1723187448645,-569.06,0.00027397,7]
[334547553,1723187448654,-500.0,0.00027397,7]
[334547554,1723187448665,-500.97639959,0.00027397,7]
[334547555,1723187448675,-503.72581299,0.00027397,7]
[334547556,1723187448685,-503.81599115,0.00027397,7]
[334547557,1723187448695,-500.0,0.00027397,7]
[334547558,1723187448706,-500.0,0.00027397,7]
[334547559,1723187448717,-500.0,0.00027397,7]
[334547560,1723187448727,-500.86905658,0.00027397,7]
[334547561,1723187448738,-504.12822574,0.00027397,7]
[334547562,1723187448749,-545.2089341,0.00027397,7]
[334547563,1723187448759,-505.38126379,0.00027397,7]
[334547564,1723187448769,-482.33552864,0.00027397,7]
[334547565,1723187448779,-559.76,0.00027397,7]
[334547566,1723187448789,-504.4671302,0.00027397,7]
[334547567,1723187448799,-500.0,0.00027397,7]
[334547568,1723187448809,-500.0,0.00027397,7]
[334547569,1723187448819,-502.34113735,0.00027397,7]
[334547570,1723187448829,-500.0,0.00027397,7]
[334547571,1723187448839,-505.21088414,0.00027397,7]
[334547572,1723187448851,-500.0,0.00027397,7]
[334547573,1723187448860,-500.0,0.00027397,7]
[334547574,1723187448870,-506.29977662,0.00027397,7]
[334547575,1723187448880,-652.57,0.00027397,7]
[334547576,1723187448890,-500.0,0.00027397,7]
[334547577,1723187448900,-231.0427242,0.00027397,7]
[334547578,1723187448911,-504.74187213,0.00027397,7]
[334547579,1723187448920,-503.67850451,0.00027397,7]
[334547580,1723187448930,-500.0,0.00027397,7]
[334547581,1723187448940,-500.0,0.00027397,7]
[334547582,1723187448950,-500.0,0.00027397,7]
[334547583,1723187448961,-500.0,0.00027397,7]
[334547584,1723187448970,-500.0,0.00027397,7]
[334547585,1723187448980,-500.0,0.00027397,7]
[334547586,1723187448991,-151.0,0.00027397,7]
[334547587,1723187449001,-506.58495556,0.00027397,7]
[334547588,1723187449011,-151.0,0.00027397,7]
[334547589,1723187449022,-151.0,0.00027397,7]
[334547590,1723187449032,-502.15135372,0.00027397,7]
[334547591,1723187449042,-151.0,0.00027397,7]
[334547592,1723187449052,-500.0,0.00027397,7]
[334547593,1723187449062,-507.07922494,0.00027397,7]
[334547594,1723187449072,-500.0,0.00027397,7]
[334547595,1723187449083,-500.0,0.00027397,7]
[334547596,1723187449093,-505.33,0.00027397,7]
[334547597,1723187449104,-500.0,0.00027397,7]
[334547598,1723187449114,-500.0,0.00027397,7]
[334547599,1723187449124,-500.0,0.00027397,7]
[334547600,1723187449135,-500.0,0.00027397,7]
[334547601,1723187449144,-500.0,0.00027397,7]
[334547602,1723187449154,-500.0,0.00027397,7]
[334547603,1723187449165,-500.0,0.00027397,7]
[334547604,1723187449176,-500.0,0.00027397,7]
[334547605,1723187449185,-500.0,0.00027397,7]
[334547606,1723187449196,-500.0,0.00027397,7]
[334547607,1723187449206,-500.0,0.00027397,7]
[334547608,1723187449216,-501.44416276,0.00027397,7]
[334547609,1723187449227,-500.0,0.00027397,7]
[334547610,1723187449239,-503.71648086,0.00027397,7]
[334547611,1723187449250,-500.0,0.00027397,7]
[334547612,1723187449260,-587.962494,0.00027397,7]
[334547613,1723187449272,-587.962494,0.00027397,7]
[334547614,1723187449282,-587.962494,0.00027397,7]
[334547615,1723187449292,-529.46,0.00027397,7]
[334547616,1723187449302,-500.0,0.00027397,7]
[334547617,1723187449311,-587.962494,0.00027397,7]
[334547618,1723187449321,-587.962494,0.00027397,7]
[334547619,1723187449331,-500.0,0.00027397,7]
[334547620,1723187449341,-587.96249575,0.00027397,7]
[334547621,1723187449351,-151.0,0.00027397,7]
[334547622,1723187449361,-151.0,0.00027397,7]